bitfinex-derivatives/quotes_SOLF0:USTF0_20250830
["timestamp","ask_amount","ask_price","bid_price","bid_amount"]
[1756518865608,7.29,202.28,202.2,7.28]
[1756518865902,7.29,202.26,202.17,0.86043838]
[1756518866102,10.62065155,202.27,202.17,0.86043838]
[1756518866103,2.89009037,202.23,202.17,0.86043838]
[1756518866301,2.89009037,202.23,202.1,7.28]
[1756518866302,10.69507345,202.22,202.1,7.28]
[1756518866605,3.44835916,202.21,202.11,8.14074697]
[1756518866811,7.29,202.22,202.11,8.14074697]
[1756518866996,0.03781472,202.18,202.11,7.28]
[1756518867395,69.2485,202.14,202.11,7.28]
[1756518867595,69.2423,202.16,202.11,2.89009037]
[1756518867905,0.03781472,202.18,202.12,7.28]
[1756518868099,0.03781472,202.18,202.15,7.28]
[1756518868300,76.4851,202.3,202.17,2.89009037]
[1756518868496,7.29,202.28,202.18,7.28]
[1756518868706,0.03157386,202.19,202.18,7.28]
[1756518869000,2.89009037,202.19,202.06,7.28]
[1756518869200,13.02254302,202.18,202.06,7.28]
[1756518869401,7.29,202.18,202.1,2.89009037]
[1756518869601,0.03346519,202.21,202.16,2.89009037]
[1756518869805,7.29,202.23,202.04,0.86090667]
[1756518869806,7.29,202.23,202.11,2.89009037]
[1756518870007,7.32334494,202.21,202.12,7.28]
[1756518870308,7.29,202.21,202.12,7.28]
[1756518870808,0.03764076,202.19,202.12,7.28]
[1756518871006,7.29,202.18,202.05,7.28]
[1756518871207,7.29,202.18,202.1,2.89009037]
[1756518871699,0.03656837,202.16,202.1,2.89009037]
[1756518872102,0.03656837,202.16,202.14,7.28]
[1756518872300,207.5194,202.36,202.16,7.28]
[1756518872500,2.89009037,202.32,202.21,7.28]
[1756518872700,11.14027164,202.31,202.23,2.89009037]
[1756518872905,7.29,202.31,202.24,7.28]
[1756518873509,2.89009037,202.26,202.17,7.28]
[1756518873812,7.29,202.24,202.13,10.17009037]
[1756518874008,7.29,202.22,202.19,0.03758386]
[1756518874211,7.29,202.2,202.19,0.03758386]
[1756518874509,11.14048019,202.2,202.11,2.89009037]
[1756518874705,11.14048019,202.19,202.17,0.03257949]
[1756518874908,2.89009037,202.23,202.17,0.03257949]
[1756518875105,7.29,202.21,202.17,0.03257949]
[1756518875311,7.29,202.19,202.17,0.03257949]
[1756518875507,7.29,202.18,202.17,0.03257949]
[1756518875909,11.13696619,202.18,202.17,0.03257949]
[1756518876105,7.29,202.16,201.87,7.28]
[1756518876412,3.84203928,202.15,201.89,7.28]
[1756518876602,7.18159021,202.14,201.95,7.28]
[1756518876800,3.84203928,202.13,201.95,7.28]
[1756518877005,0.86,202.01,201.95,7.28]
[1756518877204,0.86,202.01,201.95,10.17009037]
[1756518878010,0.86,202.01,201.95,7.28]
[1756518878206,0.03479102,202.0,201.97,7.29]
[1756518878410,0.03479102,202.0,201.96,2.89009037]
[1756518878709,2.89009037,202.12,202.0,7.29]
[1756518879010,7.54,202.1,202.0,7.29]
[1756518879306,7.54,202.08,201.87,7.29]
[1756518879502,7.54,202.06,201.8,7.29]
[1756518879705,7.54,202.01,201.86,7.29]
[1756518879914,7.54,202.01,201.95,0.03716292]
[1756518880711,3.70390193,202.0,201.95,0.03716292]
[1756518880915,7.54,202.02,201.95,0.03716292]
[1756518881111,7.54,201.99,201.95,0.03716292]
[1756518881306,3.70342319,201.98,201.95,0.03716292]
[1756518881507,7.54,201.97,201.73,7.29]
[1756518881713,8.35815426,201.96,201.8,7.29]
[1756518881914,11.23725503,201.95,201.8,7.29]
[1756518882215,7.54,201.93,201.8,7.29]
[1756518882509,7.54,202.0,201.83,7.29]
[1756518882709,3.69110964,201.99,201.84,4.66089923]
[1756518882914,0.03311186,201.89,201.85,4.66089923]
[1756518883110,7.54,202.06,201.89,7.29]
[1756518883409,7.54,202.06,201.93,7.29]
[1756518883612,8.66,202.12,201.96,4.66089923]
[1756518883613,7.54,202.11,201.96,4.66089923]
[1756518883810,3.68920395,202.1,202.0,7.29]
[1756518884011,7.54,202.11,202.0,7.29]
[1756518884212,69.264,202.09,202.0,7.29]
[1756518884417,69.264,202.09,202.03,0.03126256]
[1756518884613,76.797,202.11,202.03,0.03126256]
[1756518884813,69.264,202.09,202.03,0.03126256]
[1756518885610,7.54,202.17,202.05,4.66089923]
[1756518886015,7.54,202.24,202.09,7.29]
[1756518886212,7.54,202.22,202.09,7.29]
[1756518886415,3.68882794,202.21,202.09,7.29]
[1756518886611,3.68882794,202.2,202.09,7.29]
[1756518886811,3.68882794,202.19,202.09,7.29]
[1756518887014,7.54,202.22,202.09,7.29]
[1756518887319,3.6890249,202.21,202.12,0.03361626]
[1756518887620,7.54,202.22,202.12,0.03361626]
[1756518887621,3.6890249,202.2,202.12,0.03361626]
[1756518887817,3.6890249,202.19,202.12,0.03361626]
[1756518888019,3.6890249,202.18,202.12,0.03361626]
[1756518888219,7.54,202.22,202.12,0.03361626]
[1756518888513,3.68977712,202.21,202.12,0.03361626]
[1756518888719,3.68977712,202.2,202.12,0.03361626]
[1756518889018,3.68977712,202.19,202.12,0.03361626]
[1756518889321,3.68977712,202.18,202.12,0.03361626]
[1756518889517,7.54,202.16,202.12,0.03361626]
[1756518889720,3.68936626,202.15,202.12,0.03361626]
[1756518890017,11.22936626,202.14,202.01,4.66089923]
[1756518890319,7.54,202.12,202.11,0.03592489]
[1756518890513,11.22936626,202.12,202.0,4.66089923]
[1756518890721,3.68936626,202.11,202.0,4.66089923]
[1756518890918,7.54,202.15,202.09,0.03555752]
[1756518891123,7.54,202.13,202.0,4.66089923]
[1756518891316,3.68869272,202.12,202.0,4.66089923]
[1756518891518,4.66089923,202.19,202.1,0.0368445]
[1756518891713,6.2641825,202.26,201.96,4.66089923]
[1756518891714,11.22936693,202.18,202.08,7.29]
[1756518891915,69.2535,202.12,202.02,4.66089923]
[1756518892317,73.7137,202.1,202.01,7.29]
[1756518892617,73.7137,202.1,202.05,7.32260536]
[1756518892922,7.54,202.13,202.05,7.32260536]
[1756518893220,3.68940102,202.12,202.05,7.29]
[1756518893421,3.68988994,202.11,202.05,7.32307674]
[1756518893621,7.54,202.13,202.05,7.32307674]
[1756518893817,3.68988723,202.12,202.05,7.32307674]
[1756518894013,3.68988723,202.11,202.05,7.32307674]
[1756518894218,7.54,202.13,202.05,7.32307674]
[1756518894417,3.68974851,202.12,202.05,7.32307674]
[1756518896420,3.68974851,202.12,202.05,0.03307674]
[1756518897224,7.54,202.11,202.05,0.03307674]
[1756518897425,7.54,202.09,202.05,0.03307674]
[1756518897623,7.54,202.11,202.05,0.03307674]
[1756518897825,7.54,202.05,201.82,546.29]
[1756518898024,9.32179846,202.08,201.82,7.29]
[1756518898025,3.34374362,202.04,201.82,7.29]
[1756518898329,7.54,201.95,201.82,7.29]
[1756518898525,3.57737556,201.94,201.82,7.29]
[1756518898822,0.86,201.86,201.79,167.23]
[1756518899019,0.86,201.86,201.79,7.29]
[1756518900125,0.86,201.86,201.8,0.03397644]
[1756518900425,0.86,201.86,201.8,7.32397644]
[1756518900925,69.3468,201.85,201.8,7.32397644]
[1756518901123,69.3526,201.83,201.8,0.03397644]
[1756518901325,69.3526,201.83,201.8,7.644e-05]
[1756518902020,76.91997437,201.85,201.8,7.644e-05]
[1756518902225,0.03317437,201.85,201.8,7.644e-05]
[1756518902628,0.03317437,201.85,201.8,7.29007644]
[1756518902922,0.03317437,201.85,201.8,7.644e-05]
[1756518902923,69.3568,201.82,201.8,7.644e-05]
[1756518903117,0.03317437,201.85,201.8,7.644e-05]
[1756518904122,143.1665,201.83,201.8,7.644e-05]
[1756518904324,7.57317437,201.85,201.8,7.644e-05]
[1756518904325,0.03317437,201.85,201.8,7.644e-05]
[1756518906228,73.96729923,201.97,201.8,7.644e-05]
[1756518906229,69.2931,202.01,201.83,76.6419]
[1756518906428,69.2973,201.99,201.9,7.29]
[1756518906631,73.7475,202.01,201.9,7.29]
[1756518907332,4.4544,202.01,201.9,7.29]
[1756518907531,69.2517,202.13,201.96,7.89]
[1756518907830,69.2565,202.11,201.99,7.89]
[1756518908031,69.2629,202.09,201.99,7.89]
[1756518908229,69.2565,202.11,202.01,0.03388017]
[1756518908428,69.2347,202.18,202.05,7.89]
[1756518908631,7.28,202.19,202.07,4.66089923]
[1756518908827,69.2322,202.18,202.09,4.66089923]
[1756518909025,0.03630837,202.14,202.1,7.89]
[1756518909229,0.03630837,202.14,202.11,0.0366293]
[1756518909537,0.03630837,202.14,202.13,7.89]
[1756518909729,0.03630837,202.14,202.12,4.66089923]
[1756518909730,0.03630837,202.14,202.11,0.0366293]
[1756518909934,0.03630837,202.14,202.11,7.9266293]
[1756518910132,0.03630837,202.14,202.12,7.89]
[1756518910436,0.03630837,202.14,202.11,0.0366293]
[1756518911534,142.97920837,202.14,202.11,2.93e-05]
[1756518912131,0.03630837,202.14,202.11,2.93e-05]
[1756518912331,0.03630837,202.14,202.11,0.5000293]
[1756518912631,0.03630837,202.14,202.11,2.93e-05]
[1756518913333,0.03630837,202.14,202.06,7.0300293]
[1756518913734,0.03630837,202.14,202.07,168.8]
[1756518913932,0.03630837,202.14,202.07,176.36078745]
[1756518914434,7.28,202.13,201.92,5.46798056]
[1756518914629,0.03630837,202.14,201.9,332.68]
[1756518914830,3.92,202.24,201.9,332.68]
[1756518914831,7.56078745,202.1,201.9,332.68]
[1756518915030,7.28,202.08,201.9,332.68]
[1756518915231,0.03500205,202.04,201.91,178.91]
[1756518915530,0.03500205,202.04,201.91,7.89]
[1756518915732,7.28,202.06,201.92,171.96]
[1756518915927,7.28,202.06,201.93,7.89]
[1756518916234,0.03265618,202.0,201.93,7.89]
[1756518916732,0.03265618,202.0,201.94,172.7]
[1756518916935,0.03265618,202.0,201.93,7.89]
[1756518917236,0.03265618,202.0,201.94,172.84]
[1756518917638,0.03265618,202.0,201.95,172.9]
[1756518917937,0.03265618,202.0,201.96,7.89]
[1756518918130,0.03265618,202.0,201.95,172.9]
[1756518918537,0.03265618,202.0,201.96,173.3]
[1756518918737,0.03265618,202.0,201.93,7.56078745]
[1756518919037,7.28,202.12,201.95,7.89]
[1756518919235,7.28,202.12,201.94,172.86]
[1756518919236,7.28,202.12,201.98,7.89]
[1756518919435,14.84078745,202.21,202.01,7.56078745]
[1756518919642,5.86550868,202.2,202.02,7.89]
[1756518919838,14.84078745,202.21,202.01,7.56078745]
[1756518919839,3.44314843,202.19,202.04,7.89]
[1756518920031,3.44314843,202.18,202.04,7.89]
[1756518920233,69.2339,202.18,202.04,7.89]
[1756518920438,69.2339,202.18,202.09,0.03205816]
[1756518920934,69.2457,202.14,202.09,5.816e-05]
[1756518921134,7.28,202.13,202.09,5.816e-05]
[1756518921435,7.28,202.11,202.09,5.816e-05]
[1756518921640,7.28,202.13,202.09,5.816e-05]
[1756518921835,3.44350439,202.12,202.09,5.816e-05]
[1756518922141,69.2457,202.14,202.09,5.816e-05]
[1756518922329,7.28,202.12,202.09,5.816e-05]
[1756518922536,7.28,202.13,202.09,5.816e-05]
[1756518923638,7.28,202.15,202.09,5.816e-05]
[1756518923839,7.56078745,202.14,202.09,5.816e-05]
[1756518924042,7.28,202.13,202.09,5.816e-05]
[1756518924239,7.56078745,202.14,202.09,5.816e-05]
[1756518924644,7.28,202.15,202.09,5.816e-05]
[1756518925142,3.44310719,202.14,202.09,5.816e-05]
[1756518925337,7.78,202.15,202.09,5.816e-05]
[1756518925538,7.56078745,202.13,202.09,5.816e-05]
[1756518926139,8.06078745,202.13,201.96,7.89]
[1756518926340,7.28,202.12,201.96,180.13]
[1756518926539,7.28,202.12,201.96,7.89]
[1756518926942,7.28,202.1,201.96,7.89]
[1756518927237,7.56078745,202.09,201.9,7.89]
[1756518927443,7.28,202.04,201.9,7.89]
[1756518928138,7.28,201.98,201.86,0.86164207]
[1756518928439,7.28,202.05,201.87,7.89]
[1756518928945,0.03195487,201.94,201.88,172.16]
[1756518929244,7.28,202.05,201.88,172.16]
[1756518929638,0.03267424,201.93,201.88,172.16]
[1756518929840,7.28,202.01,201.87,7.89]
[1756518930046,7.28,202.01,201.87,180.03]
[1756518930244,0.03133818,201.93,201.87,7.89]
[1756518931643,0.03133818,201.93,201.83,7.89]
[1756518931845,0.03133818,201.93,201.83,187.47078745]
[1756518932047,0.03133818,201.93,201.83,15.45078745]
[1756518932245,0.03133818,201.93,201.83,187.65078745]
[1756518933045,0.03133818,201.93,201.87,7.56078745]
[1756518933841,0.03133818,201.93,201.89,7.89]
[1756518934044,0.03133818,201.93,201.88,172.12]
[1756518934348,0.03133818,201.93,201.9,7.89]
[1756518934548,0.03133818,201.93,201.89,0.03555959]
[1756518934743,7.28,202.06,201.92,7.89]
[1756518934944,7.28,202.06,201.95,7.56078745]
[1756518935150,7.28,202.06,201.96,7.89]
[1756518935949,7.28,202.06,201.99,0.03127299]
[1756518938755,7.24,202.17,202.0,7.56078745]
[1756518939052,7.24,202.15,202.0,7.56078745]
[1756518939352,7.56078745,202.17,201.85,5.48171099]
[1756518939554,7.24,202.07,201.84,7.38]
[1756518939756,7.24,202.03,201.84,7.38]
[1756518940051,7.24,202.01,201.84,7.38]
[1756518940354,7.24,202.01,201.91,0.03518289]
[1756518942859,7.24,202.01,201.91,7.41518289]
[1756518943058,7.24,202.1,201.95,7.38]
[1756518943454,7.24,202.1,201.95,14.94078745]
[1756518943857,7.24,202.1,201.95,7.38]
[1756518944258,7.24,202.1,202.0,0.03396281]
[1756518944660,7.24,202.08,202.0,0.03396281]
[1756518945060,7.24,202.08,201.87,339.26]
[1756518945061,7.24,202.08,201.95,7.38]
[1756518946056,7.24,202.08,201.99,0.03357582]
[1756518947260,69.2905,202.01,201.99,7.582e-05]
[1756518947462,7.24,202.0,201.99,7.582e-05]
[1756518947663,7.24,202.0,201.9,7.38]
[1756518947966,4.4544,202.01,201.9,7.38]
[1756518948363,69.2841,202.03,201.9,7.38]
[1756518948560,0.03712109,201.98,201.9,7.38]
[1756518949462,0.03712109,201.98,201.93,7.38]
[1756518949660,7.24,202.17,201.97,7.56078745]
[1756518949859,7.24,202.17,202.02,7.38]
[1756518949860,69.2468,202.14,202.02,7.38]
[1756518950365,4.4517,202.14,202.02,7.38]
[1756518950566,7.24,202.13,201.95,4.11379502]
[1756518950767,7.56078745,202.11,201.95,4.11379502]
[1756518950965,9.62543577,202.1,201.93,7.38]
[1756518951157,7.24,202.08,201.93,7.38]
[1756518951363,2.38543577,202.07,202.01,0.03612261]
[1756518951559,7.24,202.08,202.01,0.03612261]
[1756518951766,7.24,202.06,202.01,0.03612261]
[1756518951967,7.24,202.1,202.01,0.03612261]
[1756518952166,7.24,202.08,202.01,0.03612261]
[1756518952565,7.24,202.08,201.93,7.38]
[1756518952763,2.38597675,202.07,201.93,7.38]
[1756518953067,7.24,202.08,201.93,7.38]
[1756518954767,7.24,202.08,201.93,14.94078745]
[1756518955966,7.24,202.09,201.88,4.11379502]
[1756518956163,7.56078745,201.99,201.84,4.11379502]
[1756518956464,22.08,202.06,201.81,7.38]
[1756518956871,0.03631542,201.94,201.81,7.38]
[1756518957371,7.24,201.97,201.81,7.38]
[1756518957870,0.03756575,201.91,201.81,7.38]
[1756518958772,73.81926575,201.91,201.81,7.38]
[1756518959269,69.36266575,201.91,201.81,7.38]
[1756518960267,0.03756575,201.91,201.81,7.38]
[1756518960564,0.03756575,201.91,201.84,7.38]
[1756518961875,0.03756575,201.91,201.85,177.08]
[1756518962175,0.03756575,201.91,201.85,177.34]
[1756518962471,0.03756575,201.91,201.84,7.38]
[1756518963568,0.03756575,201.91,201.77,4.97575722]
[1756518963873,7.24,201.94,201.78,184.66]
[1756518964276,0.03572841,201.86,201.78,7.38]
[1756518964468,0.03572841,201.86,201.79,177.14]
[1756518965363,0.03572841,201.86,201.8,7.38]
[1756518965759,0.03572841,201.86,201.81,7.38]
[1756518965963,0.03572841,201.86,201.8,11.49379502]
[1756518966168,0.03572841,201.86,201.8,7.38]
[1756518966472,0.03572841,201.86,201.8,184.4]
[1756518967572,0.03572841,201.86,201.8,7.38]
[1756518968472,0.03572841,201.86,201.8,184.46]
[1756518970378,0.03572841,201.86,201.81,176.76]
[1756518970564,0.03572841,201.86,201.8,7.38]
[1756518970764,0.03572841,201.86,201.81,176.76]
[1756518970964,0.03572841,201.86,201.78,7.74]
[1756518971166,0.03572841,201.86,201.81,7.74]
[1756518971374,7.26572841,201.86,201.75,4.11379502]
[1756518971575,7.26572841,201.86,201.76,176.6]
[1756518971775,7.26572841,201.86,201.77,7.74]
[1756518972479,0.03572841,201.86,201.79,7.74]
[1756518972976,0.03572841,201.86,201.78,176.5]
[1756518973377,4.4582,201.84,201.74,11.85379502]
[1756518973574,4.4582,201.84,201.75,176.4]
[1756518973973,0.03170428,201.82,201.75,176.4]
[1756518974379,0.03170428,201.82,201.74,7.74]
[1756518974581,0.03170428,201.82,201.75,176.3]
[1756518975377,0.03170428,201.82,201.76,176.2]
[1756518975675,0.03170428,201.82,201.76,183.76078745]
[1756518976680,0.03170428,201.82,201.78,7.74]
[1756518976873,7.23,201.81,201.67,8.22256648]
[1756518977079,7.23,201.81,201.7,7.74]
[1756518977280,7.23,201.81,201.65,175.94]
[1756518977574,7.23,201.82,201.65,175.94]
[1756518977779,7.23,201.82,201.52,10.96342198]
[1756518977780,0.03423243,201.75,201.59,7.74]
[1756518977980,7.23,201.74,201.59,7.74]
[1756518978683,0.03423156,201.69,201.61,7.56078745]
[1756518978981,0.03423156,201.69,201.63,7.56078745]
[1756518979183,0.03423156,201.69,201.6,7.56078745]
[1756518979385,7.23,201.8,201.68,15.30078745]
[1756518979679,7.23,201.8,201.68,7.74]
[1756518980072,7.23,201.8,201.67,7.56078745]
[1756518980271,7.23,201.8,201.65,7.56078745]
[1756518980471,7.23,201.8,201.63,7.74]
[1756518980681,7.23,201.8,201.71,0.03236199]
[1756518980872,69.3849,201.74,201.71,0.03236199]
[1756518981078,7.23,201.73,201.71,0.03236199]
[1756518981273,69.3675,201.79,201.71,0.03236199]
[1756518981274,7.23,201.79,201.71,0.03236199]
[1756518981479,7.23,201.87,201.73,7.56078745]
[1756518981674,73.8011,201.86,201.73,7.56078745]
[1756518981872,73.801,201.86,201.71,7.74]
[1756518982076,73.801,201.86,201.72,7.56078745]
[1756518982578,7.23,201.87,201.77,0.03364153]
[1756518982781,0.03652383,201.81,201.78,7.74]
[1756518983282,0.03652383,201.81,201.77,0.03364153]
[1756518983987,7.23,201.8,201.77,0.03364153]
[1756518984274,0.03652383,201.81,201.77,0.03364153]
[1756518984275,7.23,201.78,201.77,0.03364153]
[1756518984883,7.73,201.78,201.77,4.153e-05]
[1756518985272,4.4599,201.77,201.66,7.56078745]
[1756518985677,7.23,201.78,201.66,7.56078745]
[1756518986679,0.03558049,201.74,201.66,7.56078745]
[1756518989185,0.03558049,201.74,201.67,7.74]
[1756518989384,0.03558049,201.74,201.7,7.56078745]
[1756518989889,0.03558049,201.74,201.71,7.74]
[1756518990486,0.03558049,201.74,201.7,7.56078745]
[1756518990689,0.03558049,201.74,201.71,7.74]
[1756518991281,0.03558049,201.74,201.61,7.74]
[1756518991482,0.03558049,201.74,201.65,7.74]
[1756518991783,11.6896,201.78,201.65,7.74]
[1756518991984,0.03444875,201.72,201.65,7.74]
[1756518992884,4.4587,201.82,201.7,7.74]
[1756518993281,81.0716,201.75,201.59,13.22171099]
[1756518993482,81.0716,201.75,201.62,7.74]
[1756518993483,69.3889,201.73,201.62,7.74]
[1756518994389,76.6113,201.75,201.61,7.56078745]
[1756518994390,0.03259808,201.7,201.65,0.03503114]
[1756518994581,0.03259808,201.7,201.65,7.77503114]
[1756518994983,0.03259808,201.7,201.66,7.74]
[1756518995488,0.03259808,201.7,201.65,7.59581859]
[1756518996283,0.03259808,201.7,201.66,7.74]
[1756518996482,0.03259808,201.7,201.65,7.59581859]
[1756518997191,0.03259808,201.7,201.66,7.86]
[1756518997387,0.03259808,201.7,201.65,7.59581859]
[1756518997589,0.03259808,201.7,201.65,0.03503114]
[1756518999886,0.03259808,201.7,201.66,7.86]
[1756519000193,0.03259808,201.7,201.65,0.03503114]
[1756519000393,0.03259808,201.7,201.68,7.86]
[1756519002089,0.03259808,201.7,201.67,4.67261354]
[1756519002296,7.84,201.8,201.68,7.86]
[1756519002592,7.84,201.8,201.74,4.67261354]
[1756519002787,7.84,201.86,201.74,4.67261354]
[1756519002986,72.86764253,201.85,201.74,4.67261354]
[1756519003189,7.84,201.86,201.77,4.67261354]
[1756519003590,73.98761354,201.95,201.8,4.67261354]
[1756519003591,7.84,201.91,201.8,4.67261354]
[1756519003792,7.84,201.97,201.89,4.67261354]
[1756519004094,7.84,202.02,201.92,12.53261354]
[1756519004286,3.52327756,202.01,201.95,4.67261354]
[1756519004490,7.84,202.02,201.95,4.67261354]
[1756519004691,69.2798,202.05,201.92,7.86]
[1756519004892,3.5233808,202.04,201.95,4.67261354]
[1756519005090,7.84,202.07,201.98,4.67261354]
[1756519005290,7.84,202.07,201.96,15.46442651]
[1756519005494,69.2745,202.06,201.96,7.86]
[1756519005693,4.4534,202.06,201.96,7.86]
[1756519005900,4.4534,202.06,201.99,0.03283485]
[1756519006196,69.2882,202.02,201.99,0.03283485]
[1756519006497,69.2882,202.02,201.99,3.485e-05]
[1756519006705,7.84,202.0,201.99,3.485e-05]
[1756519007496,69.2896,202.02,201.82,4.13805184]
[1756519007696,69.3265,201.91,201.82,4.13805184]
[1756519007902,7.84,201.92,201.76,7.86]
[1756519008899,7.84,201.92,201.82,0.03163109]
[1756519010798,7.84,202.01,201.85,7.56744874]
[1756519011197,7.84,202.01,201.86,7.86]
[1756519011698,7.84,202.01,201.91,0.03349909]
[1756519015298,7.84,202.01,201.92,7.56744874]
[1756519016101,0.03143675,201.99,201.92,7.56744874]
[1756519016698,69.306,201.97,201.91,0.03349909]
[1756519016906,69.33153675,201.99,201.91,0.03349909]
[1756519017306,4.4555,201.96,201.91,0.03349909]
[1756519017508,81.6059,201.96,201.91,0.03349909]
[1756519017703,8.34,201.95,201.78,4.13805184]
[1756519017903,73.8132,201.83,201.74,7.86]
[1756519018106,73.8141,201.83,201.74,7.86]
[1756519018309,4.4584,201.83,201.74,7.86]
[1756519018506,73.8129,201.83,201.74,7.86]
[1756519018808,69.3703,201.79,201.68,7.56744874]
[1756519019010,69.39876018,201.81,201.68,7.56744874]
[1756519019302,69.365,201.8,201.68,7.56744874]
[1756519019702,0.0357321,201.77,201.68,7.56744874]
[1756519020310,0.0357321,201.77,201.69,7.86]
[1756519021004,4.4955321,201.77,201.64,4.13805184]
[1756519021204,73.8716321,201.77,201.67,7.56744874]
[1756519021409,73.8359,201.77,201.67,7.56744874]
[1756519021604,0.03758648,201.74,201.67,7.56744874]
[1756519022407,0.03758648,201.74,201.66,7.56744874]
[1756519023404,0.03758648,201.74,201.64,7.86]
[1756519023612,0.03758648,201.74,201.66,7.56744874]
[1756519024610,0.03758648,201.74,201.67,7.86]
[1756519024805,0.03758648,201.74,201.7,7.56744874]
[1756519025414,0.03758648,201.74,201.71,7.86]
[1756519025906,0.03758648,201.74,201.7,7.56744874]
[1756519026108,0.03758648,201.74,201.71,7.86]
[1756519026511,0.03758648,201.74,201.7,7.56744874]
[1756519026906,0.03758648,201.74,201.71,7.83]
[1756519027304,0.03758648,201.74,201.7,7.56744874]
[1756519027710,0.03758648,201.74,201.71,7.83]
[1756519027910,0.03758648,201.74,201.7,7.56744874]
[1756519028912,0.03758648,201.74,201.71,7.83]
[1756519029113,0.03758648,201.74,201.7,7.56744874]
[1756519029318,0.03758648,201.74,201.73,12.49829592]
[1756519029519,0.03758648,201.74,201.73,4.66829592]
[1756519029719,0.03758648,201.74,201.69,12.49829592]
[1756519029926,0.03758648,201.74,201.69,4.66829592]
[1756519030325,0.03758648,201.74,201.69,12.49829592]
[1756519031531,0.03758648,201.74,201.69,4.66829592]
[1756519031733,7.55,201.79,201.69,4.66829592]
[1756519031734,7.55,201.84,201.73,7.83]
[1756519032031,69.3445,201.86,201.77,4.66829592]
[1756519032733,4.4583,201.84,201.73,7.83]
[1756519033029,4.4583,201.84,201.79,0.03672238]
[1756519033232,69.3515,201.84,201.79,0.03672238]
[1756519033422,7.55,201.81,201.79,2.238e-05]
[1756519033630,4.66829592,201.8,201.65,4.13805184]
[1756519033937,0.03643761,201.84,201.63,4.66829592]
[1756519033938,7.55,201.79,201.63,4.66829592]
[1756519034127,12.21829592,201.79,201.63,4.66829592]
[1756519034632,7.55,201.79,201.66,4.66829592]
[1756519034833,7.55,201.85,201.72,4.66829592]
[1756519035033,0.03325173,201.73,201.7,7.83]
[1756519035230,7.55,201.81,201.68,4.66829592]
[1756519035436,7.55,201.81,201.68,15.41767252]
[1756519035632,0.03283786,201.74,201.68,15.41767252]
[1756519036435,0.03283786,201.74,201.68,7.83]
[1756519038429,0.03283786,201.74,201.7,7.83]
[1756519039036,0.03283786,201.74,201.69,7.58767252]
[1756519039237,0.03283786,201.74,201.7,7.83]
[1756519040238,0.03283786,201.74,201.64,4.12540638]
[1756519040435,0.03283786,201.74,201.63,7.83]
[1756519042331,73.88073786,201.74,201.63,7.83]
[1756519042737,0.03283786,201.74,201.65,7.58767252]
[1756519043331,69.396,201.72,201.59,11.95540638]
[1756519043537,69.396,201.72,201.6,7.58767252]
[1756519044132,0.03492296,201.68,201.6,7.58767252]
[1756519045437,0.03492296,201.68,201.61,7.83]
[1756519045636,0.03492296,201.68,201.64,7.58767252]
[1756519046033,0.03492296,201.68,201.65,7.83]
[1756519046237,7.55,201.78,201.66,7.83]
[1756519046434,69.3651,201.81,201.68,7.58767252]
[1756519046634,4.4597,201.78,201.67,7.58767252]
[1756519047231,4.4602,201.76,201.67,7.58767252]
[1756519047635,7.55,201.75,201.7,0.03157637]
[1756519048234,4.4606,201.74,201.7,0.03157637]
[1756519048442,7.55,201.72,201.7,0.03157637]
[1756519048637,69.3892,201.73,201.7,7.637e-05]
[1756519048839,7.55,201.72,201.7,7.637e-05]
[1756519049739,12.011,201.72,201.7,7.637e-05]
[1756519050441,4.461,201.72,201.7,7.637e-05]
[1756519050641,7.55,201.71,201.7,7.637e-05]
[1756519051236,8.05,201.71,201.59,4.12540638]
[1756519051433,7.55,201.71,201.57,7.58767252]